fUSD/lending_fUSD_20241208
["ID","MTS","AMOUNT","RATE_DAILY","PERIOD"]
[344655706,1733693079859,-616.26381499,0.00018499,2]
[344655707,1733693079880,-500.0,0.00018499,2]
[344655708,1733693079901,-612.94,0.00018499,2]
[344655709,1733693079922,-644.0,0.00018499,2]
[344655710,1733693079945,-605465.766387,0.000185,2]
[344655712,1733693132009,5455.5975,0.0001,2]
[344655715,1733693296550,231.85,0.000179,30]
[344655725,1733693432344,-1086.469838,0.000168,2]
[344655726,1733693432357,-1996.582662,0.000168,2]
[344655727,1733693432366,-269.503,0.0001757,2]
[344655728,1733693432376,-494.62,0.00017738,2]
[344655729,1733693432385,-1000.0,0.0001781,2]
[344655730,1733693432395,-166.81,0.00017834,2]
[344655731,1733693432404,-250.0,0.00017995,2]
[344655732,1733693432414,-184.0,0.00017999,2]
[344655733,1733693432423,-255.184338,0.00018,2]
[344655734,1733693432442,-544.2011639,0.00018,2]
[344655735,1733693432517,-39200.6144981,0.00018,2]
[344655736,1733693432526,-150.0,0.00018125,2]
[344655737,1733693432535,-13718.0,0.00018126,2]
[344655738,1733693432543,-150.0,0.00018126,2]
[344655739,1733693432552,-879.668,0.00018126,2]
[344655740,1733693432562,-5965.0,0.00018126,2]
[344655741,1733693432571,-711.2428,0.000183,2]
[344655742,1733693432580,-3000.0,0.0001831,2]
[344655743,1733693432594,-35983.0,0.00018315,2]
[344655744,1733693432609,-2500.0,0.000184,2]
[344655745,1733693432619,-2001.2242,0.000184,2]
[344655746,1733693432628,-10364.0,0.00018466,2]
[344655747,1733693432637,-500.0,0.00018473,2]
[344655748,1733693432647,-4456.9156282,0.00018493,2]
[344655749,1733693432657,-2346.096413,0.00018493,2]
[344655750,1733693432667,-1159.7966092,0.00018493,2]
[344655751,1733693432677,-2892.8145751,0.00018493,2]
[344655752,1733693432687,-1354.1282653,0.00018493,2]
[344655764,1733693432878,-736.7028062,0.00018493,2]
[344655765,1733693432887,-32524.93454674,0.000185,2]
[344655766,1733693432895,-1244063.32099859,0.000185,2]
[344655767,1733693432906,-529.0,0.000185,2]
[344655768,1733693432916,-784640.22436932,0.000185,10]
[344655769,1733693432928,-1866.60028288,0.000185,10]
[344655770,1733693432940,-3948.56,0.000185,10]
[344655771,1733693432999,-567.0,0.00018126,2]
[344655772,1733693433008,-72741.15481267,0.000185,10]
[344655773,1733693433020,-662.436825,0.000185,10]
[344655774,1733693433884,-0.1336562,0.000185,10]
[344655776,1733693438315,-1262.0,0.00018126,2]
[344655777,1733693438324,-558.0,0.000185,2]
[344655778,1733693438334,-116137.39285531,0.000185,10]
[344655779,1733693438376,-7673.53031307,0.000185,10]
[344655780,1733693438539,-250.49,0.000185,10]
[344655801,1733693440315,-850.71681,0.000185,10]
[344655802,1733693440435,-4359.80291797,0.000185,10]
[344655803,1733693440652,-52349.08624174,0.000185,10]
[344655804,1733693440663,-1336.63898706,0.000185,10]
[344655812,1733693443358,-634.0,0.00018126,2]
[344655813,1733693443367,-500.0,0.00018499,2]
[344655814,1733693443376,-500.0,0.00018499,2]
[344655815,1733693443385,-252.47988497,0.00018499,2]
[344655816,1733693443394,-4122.72327958,0.000185,10]
[344655817,1733693443492,-2570.625,0.000185,10]
[344655818,1733693443587,-35661.70090253,0.000185,10]
[344655819,1733693443599,-48546.0,0.000185,10]
[344655866,1733693446414,-41692.08528701,0.000185,10]
[344655867,1733693446444,-4068.6,0.000185,10]
[344655873,1733694277736,-2000.0,0.00023087,120]
[344655874,1733694277766,-200.0,0.00023419,120]
[344655875,1733694277799,-2000.0,0.00024495,120]
[344655876,1733694277832,-1966.0,0.00024658,120]
[344655877,1733694277868,-200.25261465,0.00025,120]
[344655878,1733694277898,-600.0,0.00025,120]
[344655879,1733694277928,-20000.0,0.00025,120]
[344655880,1733694277958,-5000.0,0.00025,120]
[344655881,1733694277994,-5010.556807,0.00025,120]
[344655882,1733694278025,-2000.0,0.00025,120]
[344655883,1733694334829,220.25,0.00017254,30]
[344655884,1733694443441,2191.0,0.00025,120]
[344655885,1733694564959,11218.0,0.00025,120]
[344655891,1733694631477,-178.20642209,0.00015549,2]
[344655892,1733694631488,-417.46026101,0.00015549,2]
[344655893,1733694631498,-176.71570751,0.00015549,2]
[344655894,1733694631599,-345.08332175,0.00015549,2]
[344655895,1733694631608,-500.0,0.00015549,2]
[344655896,1733694631617,-106.63667825,0.00015549,2]
[344655897,1733694631630,-208.15432565,0.00015549,2]
[344655898,1733694631639,-379.12361092,0.00015549,2]
[344655899,1733694631648,-158.35566489,0.00015549,2]
[344655900,1733694631658,-287.88639854,0.0001555,2]
[344655901,1733694631678,-592.92000756,0.0001555,2]
[344655902,1733694631693,-4264.48454953,0.0001555,2]
[344655903,1733694631725,-21442.57778868,0.0001555,2]
[344655904,1733694631736,-3551.09517,0.0001555,2]
[344655905,1733694631750,-2430.3,0.0001555,2]
[344655906,1733694631761,-5146.40001196,0.0001555,2]
[344655907,1733694631800,-498.92723845,0.0001555,2]
[344655908,1733694631865,-867.70449477,0.0001555,2]
[344655932,1733694637436,-1300.0,0.0001555,2]
[344655933,1733694637500,-1585.96567992,0.0001555,2]
[344655934,1733694637573,-69383386.353117,0.0001555,2]
[344655935,1733694637636,-62911.41382443,0.0001555,2]
[344655936,1733694637757,-4790.79363746,0.0001555,2]
[344655937,1733694637933,-3313.5997,0.0001555,2]
[344655938,1733694637959,-19772.60026661,0.0001555,2]
[344655939,1733694637971,-98892.81378518,0.0001555,2]
[344655945,1733694639538,-669.99000012,0.0001555,2]
[344655946,1733694639550,-345.0350025,0.0001555,2]
[344655947,1733694639562,-1205.6283976,0.0001555,2]
[344655948,1733694639575,-999.07820002,0.0001555,2]
[344655949,1733694639719,-4410.5040732,0.0001555,2]
[344655995,1733694642651,-521.441199,0.00015457,2]
[344655996,1733694642662,-575.50599975,0.00015457,2]
[344655997,1733694642673,-1435.52179607,0.00015457,2]
[344655998,1733694642859,-2839.97930393,0.0001555,2]
[344655999,1733694642888,-4529.00720674,0.0001555,2]
[344656000,1733694642899,-3837.6850145,0.0001555,2]
[344656001,1733694642910,-22860.16694999,0.0001555,2]
[344656002,1733694642921,-12341.51839326,0.0001555,2]
[344656003,1733694642944,-32660.91149232,0.0001555,2]
[344656004,1733694642955,-2597.88721752,0.0001555,2]
[344656005,1733694642966,-45266.70712969,0.0001555,2]
[344656007,1733694642978,-10472.60079991,0.0001555,2]
[344656008,1733694642993,-3966386.24871163,0.0001555,2]
[344656009,1733694643002,-13599.0949905,0.00015557,2]
[344656010,1733694643012,-477.66,0.00015657,2]
[344656011,1733694643020,-1500.0,0.00016836,2]
[344656012,1733694643029,-150.0,0.00016872,2]
[344656013,1733694643037,-604.3,0.00016917,2]
[344656014,1733694643046,-166.81,0.00017032,2]
[344656015,1733694643055,-250.0,0.00017172,2]
[344656016,1733694643064,-1000.0,0.00017279,2]
[344656017,1733694643074,-931.67,0.00017316,2]
[344656018,1733694643083,-200.0,0.00017357,2]
[344656019,1733694643093,-1130.55,0.00017391,2]
[344656020,1733694643103,-300.0,0.00017454,2]
[344656021,1733694643113,-169.5,0.00017488,2]
[344656022,1733694643122,-250.0,0.00017519,2]
[344656023,1733694643131,-285.329,0.0001757,2]
[344656024,1733694643140,-9999.99,0.0001757,2]
[344656025,1733694643151,-221.05,0.0001757,2]
[344656026,1733694643160,-2123.55,0.0001757,2]
[344656027,1733694643169,-150.99,0.0001757,2]
[344656028,1733694643179,-299.99,0.0001757,4]
[344656029,1733694643191,-1974.3,0.0001757,2]
[344656030,1733694643200,-150.99,0.0001757,2]
[344656031,1733694643210,-12106.92,0.0001757,2]
[344656032,1733694643219,-2000.0,0.00017597,2]
[344656033,1733694643230,-15532.04,0.00017618,2]
[344656034,1733694643240,-98148.05,0.00017792,8]
[344656035,1733694643251,-122078.8,0.00017792,8]
[344656036,1733694643260,-173.07,0.00017821,2]
[344656037,1733694643270,-435.5,0.00017836,2]
[344656038,1733694643279,-167.82,0.00017875,2]
[344656039,1733694643288,-435.17,0.000179,2]
[344656040,1733694643299,-151.58,0.000179,2]
[344656041,1733694643308,-151.58,0.000179,2]
[344656042,1733694643317,-151.58,0.000179,2]
[344656043,1733694643330,-151.58,0.000179,2]
[344656044,1733694643339,-151.58,0.000179,2]
[344656045,1733694643348,-151.58,0.000179,2]
[344656046,1733694643358,-151.58,0.000179,2]
[344656047,1733694643367,-151.58,0.000179,2]
[344656048,1733694643377,-151.58,0.000179,2]
[344656049,1733694643386,-151.58,0.000179,2]
[344656050,1733694643395,-151.58,0.000179,2]
[344656051,1733694643404,-151.58,0.000179,2]
[344656052,1733694643413,-151.58,0.000179,2]
[344656053,1733694643422,-151.58,0.000179,2]
[344656054,1733694643431,-151.58,0.000179,2]
[344656055,1733694643440,-151.58,0.000179,2]
[344656056,1733694643450,-151.58,0.000179,2]
[344656057,1733694643459,-151.58,0.000179,2]
[344656058,1733694643468,-151.58,0.000179,2]
[344656059,1733694643477,-151.58,0.000179,2]
[344656060,1733694643487,-151.58,0.000179,2]
[344656061,1733694643496,-151.58,0.000179,2]
[344656062,1733694643506,-151.58,0.000179,2]
[344656063,1733694643515,-151.58,0.000179,2]
[344656064,1733694643525,-151.58,0.000179,2]
[344656065,1733694643534,-151.58,0.000179,2]
[344656066,1733694643543,-151.58,0.000179,2]
[344656067,1733694643553,-151.58,0.000179,2]
[344656068,1733694643562,-151.58,0.000179,2]
[344656069,1733694643572,-151.58,0.000179,2]
[344656070,1733694643581,-151.58,0.000179,2]
[344656071,1733694643590,-151.58,0.000179,2]
[344656072,1733694643599,-151.58,0.000179,2]
[344656073,1733694643608,-151.58,0.000179,2]
[344656074,1733694643618,-151.58,0.000179,2]
[344656075,1733694643627,-151.58,0.000179,2]
[344656076,1733694643635,-151.58,0.000179,2]
[344656077,1733694643644,-151.58,0.000179,2]
[344656078,1733694643653,-151.58,0.000179,2]
[344656079,1733694643662,-151.58,0.000179,2]
[344656080,1733694643671,-151.58,0.000179,2]
[344656081,1733694643680,-151.58,0.000179,2]
[344656082,1733694643690,-151.58,0.000179,2]
[344656083,1733694643699,-151.58,0.000179,2]
[344656084,1733694643708,-151.58,0.000179,2]
[344656085,1733694643716,-151.58,0.000179,2]
[344656086,1733694643727,-151.58,0.000179,2]
[344656087,1733694643736,-151.58,0.000179,2]
[344656088,1733694643746,-151.58,0.000179,2]
[344656089,1733694643754,-151.58,0.000179,2]
[344656090,1733694643763,-151.58,0.000179,2]
[344656091,1733694643772,-151.58,0.000179,2]
[344656092,1733694643782,-151.58,0.000179,2]
[344656093,1733694643790,-151.58,0.000179,2]
[344656094,1733694643800,-151.58,0.000179,2]
[344656095,1733694643809,-151.58,0.000179,2]
[344656096,1733694643820,-151.58,0.000179,2]
[344656097,1733694643830,-151.58,0.000179,2]
[344656098,1733694643839,-151.58,0.000179,2]
[344656099,1733694643848,-151.58,0.000179,2]
[344656100,1733694643857,-477.66,0.00017921,2]
[344656101,1733694643867,-150.0,0.00017973,2]
[344656102,1733694643876,-150.0,0.00017973,2]
[344656103,1733694643886,-34452.65,0.00017976,8]
[344656104,1733694643895,-1005.3,0.00018092,2]
[344656105,1733694643903,-5290.9,0.00018092,2]
[344656106,1733694643913,-235.62948377,0.00018095,2]
[344656107,1733694643922,-1262.0,0.00018096,2]
[344656108,1733694643931,-567.0,0.00018096,2]
[344656109,1733694643940,-2004.0,0.00018096,2]
[344656110,1733694643949,-631.0,0.00018096,2]
[344656111,1733694643959,-1893.0,0.00018096,2]
[344656112,1733694643968,-563.0,0.00018096,2]
[344656113,1733694643977,-1253.0,0.00018096,2]
[344656114,1733694643987,-3762.0,0.00018096,2]
[344656115,1733694643996,-817.0,0.00018096,2]
[344656116,1733694644005,-3530.0,0.00018096,2]
[344656117,1733694644015,-973.0,0.00018096,2]
[344656118,1733694644024,-535.0,0.00018096,2]
[344656119,1733694644034,-5965.0,0.00018096,2]
[344656120,1733694644043,-150.0,0.00018096,2]
[344656121,1733694644052,-13401.272,0.00018096,2]
[344656122,1733694644062,-310.2904,0.00018122,2]
[344656123,1733694644071,-2500.0,0.00018122,2]
[344656124,1733694644081,-929.6534,0.00018122,2]
[344656125,1733694644090,-43374.12,0.00018173,8]
[344656126,1733694644099,-32267.84,0.00018173,8]
[344656127,1733694644108,-34930.42,0.00018173,8]
[344656128,1733694644118,-5059.29,0.00018173,8]
[344656129,1733694644127,-27031.9,0.00018173,8]
[344656130,1733694644136,-53602.34,0.00018173,8]
[344656131,1733694644145,-213232.6290281,0.00018223,2]
[344656132,1733694644162,-98994.24077041,0.00018223,2]
[344656133,1733694644173,-540.34333037,0.00018223,2]
[344656134,1733694644195,-2605.5999993,0.00018223,2]
[344656136,1733694645488,-150.0,0.00018096,2]
[344656137,1733694645498,-225857.67479936,0.00018223,2]
[344656138,1733694645551,-5067.114,0.00018223,2]
[344656139,1733694645569,-6768.01470867,0.00018223,2]
[344656140,1733694645624,-56991.51182005,0.00018223,2]
[344656141,1733694645637,-4049.81749829,0.00018223,2]
[344656142,1733694645746,-343720.42312882,0.00018223,2]
[344656143,1733694645758,-1245.011984,0.00018223,2]
[344656480,1733694794686,2000.0,0.00022149,120]
[344656481,1733694795049,2000.0,0.00023591,120]
[344656482,1733694795458,2000.0,0.00024999,120]
[344656483,1733694801540,598.363352,0.00024999,120]
[344656484,1733694858293,447.54,0.00014892,2]
[344656486,1733695048958,200.3,0.00018,30]
[344656489,1733695218434,209.23,0.00016923,30]
[344656490,1733695394525,2000.0,0.00022149,120]
[344656491,1733695395554,2068.002105,0.00023749,120]
[344656492,1733695401525,200.0,0.00022149,120]
[344656493,1733695401878,200.0,0.00023749,120]
[344656494,1733695459223,1000.0,0.00025,120]
[344656495,1733695463995,1000.0,0.00025,120]
[344656496,1733695466288,1000.0,0.00025,120]
[344656497,1733695467641,1000.0,0.00025,120]
[344656498,1733695469983,1000.0,0.00025,120]
[344656499,1733695476471,667.0,0.00025,120]
[344656505,1733695831646,-686.21,0.00015071,2]
[344656506,1733695831657,-662.29521312,0.00016689,2]
[344656507,1733695831671,-411.13478688,0.00016689,2]
[344656508,1733695831682,-221.55705678,0.00016704,2]
[344656509,1733695831696,-466.54998,0.00016704,2]
[344656510,1733695831713,-311.89296322,0.00016704,2]
[344656511,1733695831724,-76.69845534,0.00016757,2]
[344656512,1733695831868,-1628.95154466,0.00016757,2]
[344656513,1733695831877,-988.02,0.00017007,2]
[344656514,1733695831888,-18.45538228,0.00017047,2]
[344656515,1733695831901,-1700.09461772,0.00017047,2]
[344656516,1733695831911,-169.5,0.00017061,2]
[344656517,1733695831920,-250.0,0.0001708,2]
[344656518,1733695831930,-516.56,0.00017114,2]
[344656519,1733695831939,-250.0,0.00017118,2]
[344656520,1733695831949,-168.96,0.00017237,2]
[344656521,1733695831959,-150.0,0.00017261,2]
[344656522,1733695831969,-686.21,0.00017335,2]
[344656523,1733695831979,-10882.12086636,0.00017504,2]
[344656530,1733695832323,-3816.87913364,0.00017504,2]
[344656531,1733695832332,-300.272,0.0001757,2]
[344656532,1733695832342,-299.99,0.0001757,4]
[344656533,1733695832351,-150.99,0.0001757,2]
[344656534,1733695832362,-150.99,0.0001757,2]
[344656535,1733695832371,-4842.55,0.0001757,2]
[344656536,1733695832381,-181.28,0.00017669,2]
[344656537,1733695832390,-19908.55,0.000179,8]
[344656538,1733695832399,-405.0,0.00018049,2]
[344656539,1733695832409,-10237.23162431,0.0001805,2]
[344656540,1733695832419,-1008.25,0.00018073,2]
[344656541,1733695832429,-150.0,0.00018089,2]
[344656542,1733695832438,-1262.0,0.00018096,2]
[344656543,1733695832447,-567.0,0.00018096,2]
[344656544,1733695832457,-2004.0,0.00018096,2]
[344656545,1733695832466,-631.0,0.00018096,2]
[344656546,1733695832476,-1893.0,0.00018096,2]
[344656547,1733695832485,-563.0,0.00018096,2]
[344656548,1733695832495,-3762.0,0.00018096,2]
[344656549,1733695832504,-1253.0,0.00018096,2]
[344656550,1733695832514,-817.0,0.00018096,2]
[344656551,1733695832523,-535.0,0.00018096,2]
[344656552,1733695832533,-973.0,0.00018096,2]
[344656553,1733695832542,-3138.01724205,0.00018096,2]
[344656554,1733695832553,-391.98275795,0.00018096,2]
[344656555,1733695832563,-1407.746,0.00018096,2]
[344656556,1733695832574,-144.24020812,0.00018096,2]
[344656557,1733695832586,-5.75979188,0.00018096,2]
[344656558,1733695832595,-447.66880654,0.000181,2]
[344656559,1733695832624,-685.56239346,0.000181,2]
[344656560,1733695832634,-218.2356,0.000181,2]
[344656561,1733695832643,-88.77798253,0.00018122,2]
[344656562,1733695837633,-2411.22201747,0.00018122,2]
[344656563,1733695837644,-716.38886969,0.00018122,2]
[344656564,1733695837655,-958.53030431,0.00018122,2]
[344656565,1733695837761,-3325.080826,0.00018122,2]
[344656566,1733695837770,-166.61847041,0.00018173,2]
[344656567,1733695837779,-28514.5568,0.000182,2]
[344656568,1733695837788,-166.61847036,0.00018205,2]
[344656569,1733695837799,-365.25932048,0.00018222,2]
[344656570,1733695837808,-222.52786676,0.00018222,2]
[344656571,1733695837817,-994.64,0.00018222,2]
[344656572,1733695837827,-213035.89241483,0.00018223,2]
[344656573,1733695837879,-38435.07258727,0.00018223,2]
[344656574,1733695837891,-98493.00000001,0.00018223,2]
[344656590,1733695839662,-3648.79072217,0.00018223,2]
[344656591,1733695839702,-36068.3629236,0.00018223,2]
[344656592,1733695839828,-799.72099998,0.00018223,2]
[344656593,1733695839841,-471.60510714,0.00018223,2]
[344656594,1733695839885,-80787.80849965,0.00018223,2]
[344656651,1733695842710,-5174.00001,0.00018223,2]
[344656652,1733695842740,-28638.35525364,0.00018223,2]
[344656654,1733695842751,-3011.264459,0.00018223,2]
[344656656,1733695842767,-342.9,0.00018223,2]
[344656657,1733695842997,-7096.30742173,0.00018223,2]
[344656658,1733695843008,-2530.4225301,0.00018223,2]
[344656659,1733695843020,-5013.87234714,0.00018223,2]
[344656660,1733695843031,-19430.54296067,0.00018223,2]
[344656661,1733695843045,-5182.9930281,0.00018223,2]
[344656681,1733695845590,-1298.9508495,0.00018223,2]
[344656683,1733695845706,-5039.03052916,0.00018223,2]
[344656684,1733695845734,-4282.94628174,0.00018223,2]
[344656685,1733695845845,-29577.73600002,0.00018223,2]
[344656698,1733695997024,200.0,0.00022149,120]
[344656699,1733695997409,315.237926,0.00023749,120]
[344656723,1733696167767,198.76,0.00017605,30]
[344656725,1733696449045,13159.9647375,0.0001,2]
[344656727,1733696720183,10074.75590652,9e-05,2]
[344656728,1733696729978,158490.19207163,9e-05,2]
[344656729,1733696736708,28000.0,9e-05,2]
[344656730,1733696744279,-198.76,0.00020189,30]
[344656731,1733696814284,6274.02084467,0.00014068,2]
[344656732,1733696824578,5000.0,0.00025,120]
[344656733,1733696861053,-198.76,0.00022773,30]
[344656734,1733696861661,4494.94991279,9e-05,2]
[344656735,1733696873784,-6759.66,0.000242,31]
[344656736,1733696873820,-2842.82,0.000242,31]
[344656737,1733696876309,13560.58444078,0.00013,15]
[344656738,1733696882837,10000.0,0.0001,2]
[344656759,1733697032016,-865.58,0.00015149,2]
[344656760,1733697032026,-328.50281676,0.000167,2]
[344656761,1733697032038,-549.49718324,0.000167,2]
[344656762,1733697032048,-252.88282624,0.00017123,2]
[344656763,1733697032059,-47.11717376,0.00017123,2]
[344656764,1733697032069,-22501.49,0.00017124,2]
[344656765,1733697032079,-250.0,0.00017173,2]
[344656766,1733697032088,-1000.0,0.00017191,2]
[344656767,1733697032098,-175.38,0.00017224,2]
[344656768,1733697032107,-586.75,0.00017241,2]
[344656769,1733697032116,-1675.28,0.00017244,2]
[344656770,1733697032128,-250.0,0.0001732,2]
[344656771,1733697032137,-150.0,0.00017336,2]
[344656772,1733697032147,-865.58,0.00017413,2]
[344656773,1733697032159,-313.436,0.0001757,2]
[344656774,1733697032171,-364.25,0.00017602,2]
[344656775,1733697032181,-150.0,0.00017671,2]
[344656776,1733697032191,-50.4950068,0.000177,2]
[344656777,1733697032202,-313.7549932,0.000177,2]
[344656778,1733697032212,-335.21841105,0.000177,2]
[344656779,1733697032223,-29.03158895,0.000177,2]
[344656780,1733697032233,-364.25,0.000177,2]
[344656781,1733697032242,-1000.0,0.00018,2]
[344656782,1733697032252,-1016.35,0.00018007,2]
[344656783,1733697032261,-1506.13,0.00018007,2]
[344656784,1733697032271,-150.99,0.00018007,2]
[344656785,1733697032280,-402.99,0.00018007,2]
[344656786,1733697032289,-150.0,0.00018039,2]
[344656787,1733697032298,-2578.47,0.0001804,2]
[344656788,1733697032308,-166.739,0.0001804,2]
[344656789,1733697032317,-364.25,0.000181,2]
[344656790,1733697032326,-983.27,0.00018102,2]
[344656791,1733697032336,-1333.52941105,0.00018122,2]
[344656792,1733697032366,-8717.37478895,0.00018122,2]
[344656793,1733697032375,-14910.4661,0.00018122,2]
[344656794,1733697032384,-2500.0,0.00018122,2]
[344656796,1733697032393,-2500.0,0.00018122,2]
[344656797,1733697032403,-166.61847036,0.00018173,2]
[344656799,1733697032412,-3000.0,0.0001819,2]
[344656800,1733697032423,-2004.0,0.00018191,2]
[344656801,1733697032433,-631.0,0.00018191,2]
[344656802,1733697032442,-1591.243,0.00018191,2]
[344656803,1733697032451,-563.0,0.00018191,2]
[344656804,1733697032460,-1247.0,0.00018191,2]
[344656805,1733697032470,-3762.0,0.00018191,2]
[344656806,1733697032479,-817.0,0.00018191,2]
[344656808,1733697032488,-3530.0,0.00018191,2]
[344656810,1733697032497,-535.0,0.00018191,2]
[344656812,1733697032506,-973.0,0.00018191,2]
[344656814,1733697032515,-567.0,0.00018191,2]
[344656816,1733697032525,-1266.81,0.00018191,2]
[344656818,1733697032534,-150.0,0.00018191,2]
[344656820,1733697032543,-634.0,0.00018191,2]
[344656822,1733697032552,-364.25,0.000182,2]
[344656824,1733697032561,-1989.0,0.000182,2]
[344656826,1733697032570,-166.61847036,0.00018211,2]
[344656828,1733697032579,-981.58,0.00018222,2]
[344656830,1733697032589,-989.72,0.00018222,2]
[344656832,1733697032598,-40316.74167033,0.00018223,2]
[344656834,1733697032610,-21642.0,0.00018223,2]
[344656836,1733697032623,-525754.25172332,0.00018223,2]
[344656839,1733697032638,-2495.9318188,0.00018223,2]
[344656841,1733697032647,-3000.0,0.00018223,2]
[344656843,1733697032656,-166.61847036,0.00018249,2]
[344656845,1733697032665,-500.0,0.00018273,2]
[344656847,1733697032675,-511.13889382,0.00018273,2]
[344656848,1733697032683,-163.55030221,0.00018273,2]
[344656849,1733697032692,-159.94963698,0.00018273,2]
[344656850,1733697032701,-150.0,0.00018273,2]
[344656851,1733697032710,-166.61847036,0.00018287,2]
[344656852,1733697032719,-2618.45646637,0.000183,2]
[344656853,1733697032796,-8054.89044571,0.000183,2]
[344656854,1733697032805,-166.61847036,0.00018324,2]
[344656855,1733697032814,-166.61847036,0.00018362,2]
[344656856,1733697032823,-2500.0,0.00018365,4]
[344656857,1733697032833,-7400.0,0.000184,2]
[344656858,1733697032842,-1000.0,0.000184,2]
[344656859,1733697032851,-5000.0,0.000184,4]
[344656860,1733697032863,-7416.9325486,0.000184,3]
[344656861,1733697032872,-166.61847036,0.000184,2]
[344656862,1733697032882,-2500.0,0.000184,4]
[344656863,1733697032891,-364.25,0.00018423,2]
[344656864,1733697032902,-364.25,0.00018423,2]
[344656865,1733697032912,-363.44,0.00018423,2]
[344656866,1733697032922,-150.0,0.00018448,2]
[344656867,1733697032931,-150.0,0.00018448,2]
[344656868,1733697032941,-150.0,0.00018448,2]
[344656869,1733697032950,-150.0,0.00018448,3]
[344656870,1733697032960,-153.0,0.00018448,3]
[344656871,1733697032970,-608.0,0.00018465,2]
[344656872,1733697032979,-19605.0,0.00018466,2]
[344656873,1733697032988,-500.0,0.00018473,2]
[344656874,1733697032998,-304.83681584,0.00018473,2]
[344656875,1733697033009,-150.0,0.00018493,2]
[344656876,1733697033019,-150.0,0.00018493,2]
[344656877,1733697033028,-150.0,0.00018493,2]
[344656878,1733697033037,-150.0,0.00018493,2]
[344656879,1733697033048,-150.0,0.00018493,2]
[344656880,1733697033057,-294.22,0.00018493,2]
[344656881,1733697033070,-268.94647877,0.00018499,5]
[344656886,1733697037916,-375.0,0.00018499,5]
[344656887,1733697038089,-431.079914,0.00018499,5]
[344656888,1733697038099,-1000.0,0.00018499,2]
[344656889,1733697038109,-1000.0,0.00018499,2]
[344656890,1733697038122,-2407.9925259,0.00018499,5]
[344656891,1733697038132,-713.75,0.00018499,2]
[344656892,1733697038141,-701115.52523294,0.000185,2]
[344656893,1733697038153,-589026.85756103,0.000185,2]
[344656894,1733697038165,-45392.16206153,0.000185,2]
[344656928,1733697039813,-806.9215952,0.000185,2]
[344656929,1733697039824,-357.80665737,0.000185,2]
[344656930,1733697039836,-4528.83320326,0.000185,2]
[344656931,1733697039848,-262.8094999,0.000185,2]
[344656932,1733697039860,-4286.7107,0.000185,2]
[344656933,1733697039872,-6553.31844,0.000185,2]
[344656934,1733697039884,-5703.00246,0.000185,2]
[344656935,1733697039915,-94671.50552805,0.000185,2]
[344656936,1733697043077,-7724.12521875,0.000185,2]
[344656937,1733697043132,-205614.29997074,0.000185,2]
[344656938,1733697043150,-90350.61065257,0.000185,2]
[344656939,1733697043163,-66870.1844201,0.000185,2]
[344656940,1733697043174,-804.4,0.000185,2]
[344656942,1733697045843,-557.206,0.00018486,2]
[344656943,1733697045852,-548.0,0.00018499,2]
[344656944,1733697045861,-9827.06770348,0.000185,2]
[344656945,1733697045872,-534.36519297,0.000185,2]
[344656946,1733697046088,-465339.9849414,0.000185,2]
[344656961,1733697146993,10151.0,0.00025,120]
[344656962,1733697190768,500.0,0.00023649,120]